[Event "*** SCC Grand Prix: Titled Tuesday Blitz"]
[Site "Chess.com"]
[Date "2020.06.09"]
[Round "3"]
[White "Escanor89"]
[Black "dretch"]
[Result "0-1"]
[WhiteElo "2511"]
[BlackElo "2782"]
[TimeControl "180+1"]
[EndTime "9:30:03 PDT"]
[Termination "dretch won on time"]

1. c4 {[%clk 0:03:00.9]} 1... c6 {[%clk 0:02:58.1]} 2. e3 {[%clk 0:02:58.1]}
2... d5 {[%clk 0:02:53.9]} 3. Nf3 {[%clk 0:02:57.2]} 3... Bf5 {[%clk 0:02:51.8]}
4. d4 {[%clk 0:02:39]} 4... e6 {[%clk 0:02:50.4]} 5. Qb3 {[%clk 0:02:33]} 5...
Qc7 {[%clk 0:02:31.3]} 6. Nc3 {[%clk 0:02:30.7]} 6... Nf6 {[%clk 0:02:26.6]} 7.
Be2 {[%clk 0:02:29.9]} 7... Nbd7 {[%clk 0:02:25]} 8. O-O {[%clk 0:02:29.3]} 8...
Bd6 {[%clk 0:02:17.3]} 9. Bd2 {[%clk 0:02:23.1]} 9... O-O {[%clk 0:02:16.5]} 10.
Rac1 {[%clk 0:02:22.1]} 10... Qb8 {[%clk 0:02:16.6]} 11. h3 {[%clk 0:02:16.5]}
11... Ne4 {[%clk 0:02:11.6]} 12. Rfd1 {[%clk 0:02:11.5]} 12... Nxd2 {[%clk
0:02:08.8]} 13. Rxd2 {[%clk 0:02:07.8]} 13... Rd8 {[%clk 0:01:41]} 14. Rcd1
{[%clk 0:01:58.2]} 14... Qc7 {[%clk 0:01:35.3]} 15. Rc1 {[%clk 0:01:55.5]} 15...
dxc4 {[%clk 0:01:34.2]} 16. Bxc4 {[%clk 0:01:53]} 16... Be7 {[%clk 0:01:12.2]}
17. e4 {[%clk 0:01:25.5]} 17... Bg6 {[%clk 0:01:09.9]} 18. Be2 {[%clk
0:01:18.7]} 18... Qb6 {[%clk 0:01:04.8]} 19. Qxb6 {[%clk 0:01:01.6]} 19... axb6
{[%clk 0:00:46.3]} 20. a3 {[%clk 0:01:01.1]} 20... Nf6 {[%clk 0:00:42.1]} 21. e5
{[%clk 0:00:49.7]} 21... Ne4 {[%clk 0:00:34.2]} 22. Nxe4 {[%clk 0:00:46.7]}
22... Bxe4 {[%clk 0:00:35.1]} 23. Rcd1 {[%clk 0:00:38.8]} 23... b5 {[%clk
0:00:33.4]} 24. Bd3 {[%clk 0:00:22.8]} 24... Bxf3 {[%clk 0:00:33.2]} 25. gxf3
{[%clk 0:00:23]} 25... Bg5 {[%clk 0:00:31.2]} 26. Rc2 {[%clk 0:00:19]} 26... Ra4
{[%clk 0:00:31.2]} 27. Be4 {[%clk 0:00:14.2]} 27... Raxd4 {[%clk 0:00:28.3]} 28.
Rxd4 {[%clk 0:00:13]} 28... Rxd4 {[%clk 0:00:29.2]} 29. b3 {[%clk 0:00:11.8]}
29... Bf4 {[%clk 0:00:24.7]} 30. a4 {[%clk 0:00:09.4]} 30... bxa4 {[%clk
0:00:24.1]} 31. bxa4 {[%clk 0:00:09.7]} 31... Bxe5 {[%clk 0:00:17.9]} 32. Rc5
{[%clk 0:00:07.8]} 32... Bd6 {[%clk 0:00:16.3]} 33. Ra5 {[%clk 0:00:08]} 33...
f5 {[%clk 0:00:15.5]} 34. Ra8+ {[%clk 0:00:08.1]} 34... Kf7 {[%clk 0:00:15.6]}
35. Bc2 {[%clk 0:00:08]} 35... Rd2 {[%clk 0:00:14.7]} 36. Bb3 {[%clk 0:00:08.1]}
36... Bc5 {[%clk 0:00:14.4]} 37. Rb8 {[%clk 0:00:06.9]} 37... Rd7 {[%clk
0:00:13.7]} 38. a5 {[%clk 0:00:05.8]} 38... Kf6 {[%clk 0:00:13.3]} 39. a6 {[%clk
0:00:04.8]} 39... bxa6 {[%clk 0:00:12.8]} 40. Rc8 {[%clk 0:00:04.7]} 40... Re7
{[%clk 0:00:11.9]} 41. Rxc6 {[%clk 0:00:04.4]} 41... Bd4 {[%clk 0:00:11.2]} 42.
Rxa6 {[%clk 0:00:04.3]} 42... Ke5 {[%clk 0:00:10.6]} 43. Kg2 {[%clk 0:00:04.4]}
43... g6 {[%clk 0:00:10.4]} 44. Ra5+ {[%clk 0:00:04.4]} 44... Kf6 {[%clk
0:00:10.5]} 45. Ra6 {[%clk 0:00:04.7]} 45... Be5 {[%clk 0:00:10.7]} 46. Rb6
{[%clk 0:00:04.4]} 46... Bf4 {[%clk 0:00:10.9]} 47. Rc6 {[%clk 0:00:04.5]} 47...
Kf7 {[%clk 0:00:10.9]} 48. Bc4 {[%clk 0:00:04.6]} 48... Bd2 {[%clk 0:00:10.3]}
49. Rd6 {[%clk 0:00:04.4]} 49... Bf4 {[%clk 0:00:09.2]} 50. Rc6 {[%clk
0:00:04.6]} 50... Kf6 {[%clk 0:00:09.6]} 51. Rb6 {[%clk 0:00:04.7]} 51... Ke5
{[%clk 0:00:09.6]} 52. Rc6 {[%clk 0:00:04.6]} 52... Bh6 {[%clk 0:00:09]} 53. Rb6
{[%clk 0:00:04.5]} 53... Bd2 {[%clk 0:00:08.7]} 54. Rc6 {[%clk 0:00:04.6]} 54...
Ba5 {[%clk 0:00:07.9]} 55. Ra6 {[%clk 0:00:04.6]} 55... Bb4 {[%clk 0:00:07.2]}
56. Rb6 {[%clk 0:00:04.4]} 56... Bc5 {[%clk 0:00:05.2]} 57. Rc6 {[%clk
0:00:03.2]} 57... Ba7 {[%clk 0:00:05.1]} 58. Ra6 {[%clk 0:00:02.9]} 58... Bb8
{[%clk 0:00:03.4]} 59. Rb6 {[%clk 0:00:02.8]} 59... Bc7 {[%clk 0:00:03.4]} 60.
Rc6 {[%clk 0:00:02.4]} 60... Bd8 {[%clk 0:00:03.2]} 61. Ra6 {[%clk 0:00:02.3]}
61... g5 {[%clk 0:00:03.4]} 62. Ra5+ {[%clk 0:00:02]} 62... Bxa5 {[%clk
0:00:03]} 0-1

[Event "*** SCC Grand Prix: Titled Tuesday Blitz"]
[Site "Chess.com"]
[Date "2020.06.09"]
[Round "3"]
[White "MoonlighT89"]
[Black "chessmaugli"]
[Result "0-1"]
[WhiteElo "2562"]
[BlackElo "2462"]
[TimeControl "180+1"]
[EndTime "9:30:04 PDT"]
[Termination "chessmaugli won on time"]

1. d4 {[%clk 0:03:00.9]} 1... Nf6 {[%clk 0:02:58.3]} 2. Nf3 {[%clk 0:03:00]}
2... e6 {[%clk 0:02:57.4]} 3. Bf4 {[%clk 0:02:56.6]} 3... c5 {[%clk 0:02:54.1]}
4. c3 {[%clk 0:02:54.2]} 4... d5 {[%clk 0:02:53.2]} 5. Nbd2 {[%clk 0:02:52.4]}
5... Bd6 {[%clk 0:02:51.5]} 6. Bxd6 {[%clk 0:02:47.2]} 6... Qxd6 {[%clk
0:02:50.1]} 7. e3 {[%clk 0:02:48.1]} 7... Nbd7 {[%clk 0:02:47.8]} 8. Bd3 {[%clk
0:02:47.3]} 8... e5 {[%clk 0:02:39.4]} 9. dxe5 {[%clk 0:02:46.3]} 9... Nxe5
{[%clk 0:02:38.4]} 10. Nxe5 {[%clk 0:02:47]} 10... Qxe5 {[%clk 0:02:37.4]} 11.
Nf3 {[%clk 0:02:46.5]} 11... Qe7 {[%clk 0:02:31.6]} 12. O-O {[%clk 0:02:38.8]}
12... O-O {[%clk 0:02:30.7]} 13. h3 {[%clk 0:02:37.1]} 13... Be6 {[%clk
0:02:27]} 14. Qe2 {[%clk 0:02:28.9]} 14... Rfe8 {[%clk 0:02:23.5]} 15. c4 {[%clk
0:02:23.3]} 15... dxc4 {[%clk 0:02:15.1]} 16. Bxc4 {[%clk 0:02:24.2]} 16... Bxc4
{[%clk 0:02:13.8]} 17. Qxc4 {[%clk 0:02:25.1]} 17... Rad8 {[%clk 0:02:11.1]} 18.
Rfd1 {[%clk 0:02:23.1]} 18... b6 {[%clk 0:02:07.5]} 19. a3 {[%clk 0:02:15.3]}
19... h6 {[%clk 0:01:59.2]} 20. Qa4 {[%clk 0:02:10.2]} 20... Qb7 {[%clk
0:01:49.5]} 21. Qc4 {[%clk 0:01:58.7]} 21... Qc6 {[%clk 0:01:43.6]} 22. b4
{[%clk 0:01:48.8]} 22... Qe4 {[%clk 0:01:31.4]} 23. Qa6 {[%clk 0:01:07.7]} 23...
cxb4 {[%clk 0:01:27.4]} 24. axb4 {[%clk 0:01:06.9]} 24... Qxb4 {[%clk
0:01:24.5]} 25. Qxa7 {[%clk 0:01:03.1]} 25... Rxd1+ {[%clk 0:01:22.4]} 26. Rxd1
{[%clk 0:01:04]} 26... b5 {[%clk 0:01:16.6]} 27. Nd4 {[%clk 0:00:57.2]} 27...
Qb2 {[%clk 0:01:10.9]} 28. Qa1 {[%clk 0:00:50.9]} 28... Qxa1 {[%clk 0:01:02]}
29. Rxa1 {[%clk 0:00:51.8]} 29... Rb8 {[%clk 0:01:01.1]} 30. Rb1 {[%clk
0:00:44.1]} 30... b4 {[%clk 0:00:59.4]} 31. Kf1 {[%clk 0:00:34.6]} 31... Ne4
{[%clk 0:00:54.5]} 32. Ke1 {[%clk 0:00:32.6]} 32... Kf8 {[%clk 0:00:48.7]} 33.
Nc6 {[%clk 0:00:25.5]} 33... Rc8 {[%clk 0:00:43.2]} 34. Nxb4 {[%clk 0:00:16.5]}
34... Rb8 {[%clk 0:00:41.4]} 35. Rb2 {[%clk 0:00:15.9]} 35... Nc5 {[%clk
0:00:35.2]} 36. Ke2 {[%clk 0:00:14.5]} 36... Na4 {[%clk 0:00:33.2]} 37. Rb3
{[%clk 0:00:13]} 37... Nc5 {[%clk 0:00:31.8]} 38. Rc3 {[%clk 0:00:13.2]} 38...
Rxb4 {[%clk 0:00:27.7]} 39. Rxc5 {[%clk 0:00:13.2]} 39... g6 {[%clk 0:00:25.2]}
40. Ra5 {[%clk 0:00:11.3]} 40... Kg7 {[%clk 0:00:24.5]} 41. Kf3 {[%clk
0:00:11.8]} 41... h5 {[%clk 0:00:23.9]} 42. g3 {[%clk 0:00:10.7]} 42... Rc4
{[%clk 0:00:23.4]} 43. g4 {[%clk 0:00:10.3]} 43... hxg4+ {[%clk 0:00:21.7]} 44.
hxg4 {[%clk 0:00:11.2]} 44... Rb4 {[%clk 0:00:21.7]} 45. g5 {[%clk 0:00:11.1]}
45... Rc4 {[%clk 0:00:21.4]} 46. Ra7 {[%clk 0:00:11.3]} 46... Rb4 {[%clk
0:00:20.3]} 47. Kg3 {[%clk 0:00:10.5]} 47... Rc4 {[%clk 0:00:20.1]} 48. f3
{[%clk 0:00:11]} 48... Rb4 {[%clk 0:00:19.8]} 49. e4 {[%clk 0:00:11.4]} 49...
Rc4 {[%clk 0:00:19.3]} 50. e5 {[%clk 0:00:11.8]} 50... Rc6 {[%clk 0:00:18.8]}
51. Kf4 {[%clk 0:00:10.5]} 51... Rc4+ {[%clk 0:00:18]} 52. Kg3 {[%clk
0:00:10.3]} 52... Rc6 {[%clk 0:00:17.5]} 53. Rd7 {[%clk 0:00:09.9]} 53... Kf8
{[%clk 0:00:16.4]} 54. f4 {[%clk 0:00:08.8]} 54... Rc1 {[%clk 0:00:14]} 55. Rd4
{[%clk 0:00:04.9]} 55... Re1 {[%clk 0:00:12.2]} 56. Kf3 {[%clk 0:00:05.1]} 56...
Ke7 {[%clk 0:00:11.8]} 57. Re4 {[%clk 0:00:04.2]} 57... Ra1 {[%clk 0:00:10.8]}
0-1

[Event "*** SCC Grand Prix: Titled Tuesday Blitz"]
[Site "Chess.com"]
[Date "2020.06.09"]
[Round "3"]
[White "MuhittinBuker"]
[Black "BikingBrian"]
[Result "0-1"]
[WhiteElo "1891"]
[BlackElo "2299"]
[TimeControl "180+1"]
[EndTime "9:30:05 PDT"]
[Termination "BikingBrian won by resignation"]

1. d4 {[%clk 0:03:00.9]} 1... Nf6 {[%clk 0:02:59.5]} 2. c4 {[%clk 0:02:59.6]}
2... g6 {[%clk 0:02:59.9]} 3. Nc3 {[%clk 0:02:59.6]} 3... Bg7 {[%clk 0:03:00.5]}
4. e4 {[%clk 0:02:59.6]} 4... d6 {[%clk 0:03:01]} 5. Nf3 {[%clk 0:02:59.7]} 5...
O-O {[%clk 0:03:01.2]} 6. Be2 {[%clk 0:03:00.3]} 6... Na6 {[%clk 0:03:01.6]} 7.
O-O {[%clk 0:03:00.6]} 7... e5 {[%clk 0:03:02]} 8. Be3 {[%clk 0:03:00.5]} 8...
Ng4 {[%clk 0:03:00.9]} 9. Bg5 {[%clk 0:03:00]} 9... Qe8 {[%clk 0:03:01.3]} 10.
dxe5 {[%clk 0:02:59.2]} 10... dxe5 {[%clk 0:03:02.2]} 11. Bc1 {[%clk 0:02:58.5]}
11... f5 {[%clk 0:02:48]} 12. h3 {[%clk 0:02:56.7]} 12... Nf6 {[%clk 0:02:47.7]}
13. Be3 {[%clk 0:02:47.1]} 13... f4 {[%clk 0:02:43.4]} 14. Bc1 {[%clk
0:02:43.1]} 14... c6 {[%clk 0:02:43.8]} 15. b3 {[%clk 0:02:41.3]} 15... Qe7
{[%clk 0:02:30.7]} 16. a3 {[%clk 0:02:34.1]} 16... Rd8 {[%clk 0:02:28.8]} 17.
Qc2 {[%clk 0:02:33.5]} 17... Nc7 {[%clk 0:02:26.9]} 18. Bb2 {[%clk 0:02:33]}
18... Be6 {[%clk 0:02:19.1]} 19. Rad1 {[%clk 0:02:31.8]} 19... Bf7 {[%clk
0:02:17.9]} 20. Na4 {[%clk 0:02:21.7]} 20... b6 {[%clk 0:02:16.2]} 21. Nxe5
{[%clk 0:02:16.8]} 21... Be8 {[%clk 0:01:41.8]} 22. Bf3 {[%clk 0:01:40.9]} 22...
g5 {[%clk 0:01:40.6]} 23. Ng4 {[%clk 0:01:37.6]} 23... h5 {[%clk 0:01:27.4]} 24.
Nxf6+ {[%clk 0:01:37]} 24... Bxf6 {[%clk 0:01:27.8]} 25. e5 {[%clk 0:01:31]}
25... Bg7 {[%clk 0:01:17.3]} 26. Qf5 {[%clk 0:01:16]} 26... Bd7 {[%clk
0:01:07.1]} 27. Rxd7 {[%clk 0:01:01.1]} 27... Rxd7 {[%clk 0:00:51]} 28. Bxc6
{[%clk 0:01:00.9]} 28... Rad8 {[%clk 0:00:46]} 29. Be4 {[%clk 0:00:54.1]} 29...
Ne6 {[%clk 0:00:38.7]} 30. Nc3 {[%clk 0:00:49.9]} 30... Nd4 {[%clk 0:00:34.5]}
31. Nd5 {[%clk 0:00:46.1]} 31... Nxf5 {[%clk 0:00:33.6]} 32. Nxe7+ {[%clk
0:00:45.4]} 32... Nxe7 {[%clk 0:00:34.5]} 33. b4 {[%clk 0:00:32.8]} 33... Rd2
{[%clk 0:00:34.3]} 34. Bc3 {[%clk 0:00:31.1]} 34... Re2 {[%clk 0:00:34.2]} 35.
f3 {[%clk 0:00:27.1]} 35... Re3 {[%clk 0:00:32.3]} 36. Rc1 {[%clk 0:00:22]}
36... Kf8 {[%clk 0:00:27.9]} 37. c5 {[%clk 0:00:22.2]} 37... bxc5 {[%clk
0:00:27.4]} 38. bxc5 {[%clk 0:00:22.4]} 38... Rc8 {[%clk 0:00:27.8]} 39. Bd4
{[%clk 0:00:17.5]} 39... Rxa3 {[%clk 0:00:25.1]} 40. c6 {[%clk 0:00:16.5]} 40...
Ra5 {[%clk 0:00:24.9]} 41. c7 {[%clk 0:00:15.4]} 41... Bxe5 {[%clk 0:00:24.8]}
42. Bxe5 {[%clk 0:00:15.1]} 42... Rxe5 {[%clk 0:00:24.5]} 43. Bb7 {[%clk
0:00:15.1]} 43... Ke8 {[%clk 0:00:22.4]} 44. Bxc8 {[%clk 0:00:12.2]} 44... Nxc8
{[%clk 0:00:23.3]} 45. Rd1 {[%clk 0:00:11.9]} 45... Re7 {[%clk 0:00:22.6]} 46.
Rd8+ {[%clk 0:00:10.9]} 46... Kf7 {[%clk 0:00:22.1]} 47. Rxc8 {[%clk 0:00:11.1]}
47... Kg7 {[%clk 0:00:22.1]} 48. Kf2 {[%clk 0:00:09.7]} 48... Kh7 {[%clk
0:00:21.6]} 49. Kf1 {[%clk 0:00:06.7]} 49... a5 {[%clk 0:00:21.8]} 50. Ra8
{[%clk 0:00:05.7]} 50... Rxc7 {[%clk 0:00:22.1]} 51. Rxa5 {[%clk 0:00:05.9]}
51... Rc2 {[%clk 0:00:22.4]} 52. Rxg5 {[%clk 0:00:04.6]} 52... Kh6 {[%clk
0:00:22.8]} 53. Rf5 {[%clk 0:00:04.5]} 53... Rc4 {[%clk 0:00:23.1]} 54. h4
{[%clk 0:00:03.4]} 54... Kg6 {[%clk 0:00:23.4]} 55. Rg5+ {[%clk 0:00:02.7]}
55... Kh6 {[%clk 0:00:23.9]} 56. Ke2 {[%clk 0:00:02.5]} 56... Rc2+ {[%clk
0:00:22.6]} 57. Kd3 {[%clk 0:00:02.6]} 57... Rc6 {[%clk 0:00:22.2]} 58. Ke4
{[%clk 0:00:02]} 58... Rf6 {[%clk 0:00:21.9]} 59. Ke5 {[%clk 0:00:02]} 59... Rf7
{[%clk 0:00:21.7]} 60. Rf5 {[%clk 0:00:02.5]} 60... Rg7 {[%clk 0:00:21.9]} 61.
Kxf4 {[%clk 0:00:02.5]} 61... Rxg2 {[%clk 0:00:21.8]} 62. Rg5 {[%clk 0:00:02.3]}
62... Ra2 {[%clk 0:00:21.5]} 63. Rc5 {[%clk 0:00:01.7]} 63... Ra4+ {[%clk
0:00:22.4]} 64. Kg3 {[%clk 0:00:02]} 64... Rb4 {[%clk 0:00:22.4]} 65. Rc6+
{[%clk 0:00:02.2]} 65... Kg7 {[%clk 0:00:22.1]} 66. Rc7+ {[%clk 0:00:02.9]}
66... Kh6 {[%clk 0:00:22.5]} 67. Rc6+ {[%clk 0:00:03.2]} 67... Kg7 {[%clk
0:00:22.9]} 68. Rd6 {[%clk 0:00:03.5]} 68... Kh7 {[%clk 0:00:22.9]} 69. Ra6
{[%clk 0:00:04]} 69... Kg7 {[%clk 0:00:23.2]} 70. Rf6 {[%clk 0:00:04.4]} 70...
Kxf6 {[%clk 0:00:23.2]} 71. f4 {[%clk 0:00:03.3]} 71... Kf5 {[%clk 0:00:23.4]}
0-1

[Event "*** SCC Grand Prix: Titled Tuesday Blitz"]
[Site "Chess.com"]
[Date "2020.06.09"]
[Round "3"]
[White "Pavel_Mir"]
[Black "Vaathi_Coming"]
[Result "1/2-1/2"]
[WhiteElo "2303"]
[BlackElo "2825"]
[TimeControl "180+1"]
[EndTime "9:30:11 PDT"]
[Termination "Game drawn - insufficient material"]

1. Nf3 {[%clk 0:03:00.9]} 1... Nf6 {[%clk 0:02:59.5]} 2. d4 {[%clk 0:02:59.8]}
2... g6 {[%clk 0:02:59.9]} 3. c4 {[%clk 0:02:59.5]} 3... Bg7 {[%clk 0:03:00.3]}
4. Nc3 {[%clk 0:03:00.2]} 4... O-O {[%clk 0:03:00.7]} 5. e4 {[%clk 0:03:00.1]}
5... d6 {[%clk 0:03:01.6]} 6. h3 {[%clk 0:03:00.6]} 6... e5 {[%clk 0:03:00.8]}
7. d5 {[%clk 0:03:01]} 7... Nh5 {[%clk 0:03:01.2]} 8. g3 {[%clk 0:02:57.8]} 8...
f5 {[%clk 0:03:00.7]} 9. Ng5 {[%clk 0:02:47.4]} 9... f4 {[%clk 0:02:56.2]} 10.
g4 {[%clk 0:02:20.4]} 10... Qxg5 {[%clk 0:02:48.1]} 11. gxh5 {[%clk 0:02:17.9]}
11... gxh5 {[%clk 0:02:43]} 12. Be2 {[%clk 0:02:14.3]} 12... Kh8 {[%clk
0:02:36]} 13. Bxh5 {[%clk 0:02:12.8]} 13... Nd7 {[%clk 0:02:36.3]} 14. h4 {[%clk
0:02:10.7]} 14... Qh6 {[%clk 0:02:30.6]} 15. Nb5 {[%clk 0:02:05.5]} 15... Nf6
{[%clk 0:02:29.2]} 16. Bf3 {[%clk 0:02:04.8]} 16... Rf7 {[%clk 0:02:25.6]} 17.
Bd2 {[%clk 0:01:59.8]} 17... a6 {[%clk 0:02:22.4]} 18. Nc3 {[%clk 0:01:59.3]}
18... Bd7 {[%clk 0:02:22.7]} 19. Qe2 {[%clk 0:01:58.1]} 19... Rg8 {[%clk
0:02:20.7]} 20. O-O-O {[%clk 0:01:56.3]} 20... Bf8 {[%clk 0:02:21.2]} 21. Rdf1
{[%clk 0:01:34.5]} 21... Rfg7 {[%clk 0:02:16.9]} 22. Qd1 {[%clk 0:01:33.9]}
22... Bg4 {[%clk 0:02:10.2]} 23. Kb1 {[%clk 0:01:11.6]} 23... Bxf3 {[%clk
0:01:59.9]} 24. Qxf3 {[%clk 0:01:12.1]} 24... Qh5 {[%clk 0:01:57.4]} 25. Qh3
{[%clk 0:01:07.5]} 25... Rg4 {[%clk 0:01:55.7]} 26. Be1 {[%clk 0:00:40.6]} 26...
Nxe4 {[%clk 0:01:45.4]} 27. Nxe4 {[%clk 0:00:37.1]} 27... Rxh4 {[%clk
0:01:45.7]} 28. Qd3 {[%clk 0:00:14.3]} 28... Rxh1 {[%clk 0:01:45.3]} 29. Nf6
{[%clk 0:00:14.6]} 29... Rxf1 {[%clk 0:01:31]} 30. Nxh5 {[%clk 0:00:14]} 30...
Rxe1+ {[%clk 0:01:31.2]} 31. Kc2 {[%clk 0:00:14.6]} 31... Rg6 {[%clk 0:01:29.2]}
32. Kb3 {[%clk 0:00:10.5]} 32... Rg5 {[%clk 0:01:11.8]} 33. Nf6 {[%clk
0:00:09.6]} 33... Rg3 {[%clk 0:01:10.4]} 34. fxg3 {[%clk 0:00:06.3]} 34... Re3
{[%clk 0:01:10.2]} 35. Qxe3 {[%clk 0:00:06]} 35... fxe3 {[%clk 0:01:11.1]} 36.
Kc2 {[%clk 0:00:06.3]} 36... Bh6 {[%clk 0:01:07.5]} 37. Kd3 {[%clk 0:00:04.5]}
37... Bg5 {[%clk 0:01:07.5]} 38. Ne8 {[%clk 0:00:04.4]} 38... Bd8 {[%clk
0:01:07.4]} 39. c5 {[%clk 0:00:04.4]} 39... dxc5 {[%clk 0:01:06.2]} 40. d6
{[%clk 0:00:04.3]} 40... cxd6 {[%clk 0:01:04.4]} 41. Nxd6 {[%clk 0:00:05]} 41...
Bf6 {[%clk 0:00:53.5]} 42. Nxb7 {[%clk 0:00:04.9]} 42... c4+ {[%clk 0:00:28]}
43. Kxe3 {[%clk 0:00:05]} 43... e4 {[%clk 0:00:25.3]} 44. Nd6 {[%clk 0:00:05]}
44... Bxb2 {[%clk 0:00:25.3]} 45. Nxc4 {[%clk 0:00:05.3]} 45... Bc3 {[%clk
0:00:23.2]} 46. Kxe4 {[%clk 0:00:05.7]} 46... Kg7 {[%clk 0:00:23.8]} 47. Kf5
{[%clk 0:00:06]} 47... Bd4 {[%clk 0:00:22.4]} 48. a4 {[%clk 0:00:05.9]} 48...
Ba7 {[%clk 0:00:20.9]} 49. g4 {[%clk 0:00:06.3]} 49... Bb8 {[%clk 0:00:20.5]}
50. Na5 {[%clk 0:00:05.6]} 50... Bc7 {[%clk 0:00:19.7]} 51. Nc6 {[%clk
0:00:05.8]} 51... Bd6 {[%clk 0:00:18]} 52. Nd4 {[%clk 0:00:06]} 52... Kf7 {[%clk
0:00:17.6]} 53. g5 {[%clk 0:00:06.3]} 53... Bc5 {[%clk 0:00:15.8]} 54. Ne6
{[%clk 0:00:06.5]} 54... Bd6 {[%clk 0:00:13.6]} 55. Nd8+ {[%clk 0:00:06.7]}
55... Ke8 {[%clk 0:00:13.2]} 56. Nb7 {[%clk 0:00:06.8]} 56... Be7 {[%clk
0:00:12.7]} 57. Na5 {[%clk 0:00:06.9]} 57... Kd7 {[%clk 0:00:12.6]} 58. Nc4
{[%clk 0:00:07]} 58... Kc6 {[%clk 0:00:12.3]} 59. Ne5+ {[%clk 0:00:06.7]} 59...
Kc5 {[%clk 0:00:11.4]} 60. Nd7+ {[%clk 0:00:06.8]} 60... Kb4 {[%clk 0:00:10.4]}
61. Nb8 {[%clk 0:00:07]} 61... Bxg5 {[%clk 0:00:07.2]} 62. Nxa6+ {[%clk
0:00:06.6]} 62... Kxa4 {[%clk 0:00:06.7]} 63. Nc5+ {[%clk 0:00:06.8]} 63... Ka5
{[%clk 0:00:07.5]} 64. Kxg5 {[%clk 0:00:07]} 64... Kb5 {[%clk 0:00:08.1]} 65.
Kh6 {[%clk 0:00:07.6]} 65... Kc6 {[%clk 0:00:09]} 66. Kxh7 {[%clk 0:00:08.2]}
1/2-1/2

[Event "*** SCC Grand Prix: Titled Tuesday Blitz"]
[Site "Chess.com"]
[Date "2020.06.09"]
[Round "3"]
[White "Baby_Shak"]
[Black "Anaj14"]
[Result "0-1"]
[WhiteElo "2564"]
[BlackElo "2290"]
[TimeControl "180+1"]
[EndTime "9:30:12 PDT"]
[Termination "Anaj14 won by checkmate"]

1. d4 {[%clk 0:03:00.9]} 1... d6 {[%clk 0:02:59.3]} 2. Nc3 {[%clk 0:02:57.4]}
2... Nf6 {[%clk 0:02:58.4]} 3. e4 {[%clk 0:02:56]} 3... g6 {[%clk 0:02:59.3]} 4.
Bf4 {[%clk 0:02:55.4]} 4... Bg7 {[%clk 0:02:59.5]} 5. Qd2 {[%clk 0:02:55.9]}
5... h5 {[%clk 0:02:56.5]} 6. O-O-O {[%clk 0:02:55]} 6... c6 {[%clk 0:02:55.1]}
7. Nf3 {[%clk 0:02:48.1]} 7... Bg4 {[%clk 0:02:52.5]} 8. Be2 {[%clk 0:02:46.4]}
8... Qa5 {[%clk 0:02:52.2]} 9. h3 {[%clk 0:02:36.6]} 9... Bxf3 {[%clk
0:02:52.4]} 10. Bxf3 {[%clk 0:02:37.5]} 10... Nbd7 {[%clk 0:02:48.7]} 11. Kb1
{[%clk 0:02:36.6]} 11... e5 {[%clk 0:02:46.8]} 12. dxe5 {[%clk 0:02:25.7]} 12...
dxe5 {[%clk 0:02:46.2]} 13. Bg5 {[%clk 0:02:24]} 13... O-O-O {[%clk 0:02:41.9]}
14. Qe3 {[%clk 0:02:12.7]} 14... Nc5 {[%clk 0:02:29.6]} 15. Be2 {[%clk
0:01:57.1]} 15... Qb4 {[%clk 0:02:18.6]} 16. a3 {[%clk 0:01:52.1]} 16... Qb6
{[%clk 0:02:17.3]} 17. Bc4 {[%clk 0:01:46.9]} 17... Ne6 {[%clk 0:01:13.2]} 18.
Bxe6+ {[%clk 0:01:37.2]} 18... fxe6 {[%clk 0:01:14.1]} 19. Qe2 {[%clk
0:01:36.8]} 19... Rd4 {[%clk 0:01:11.2]} 20. Be3 {[%clk 0:01:34.4]} 20... Rhd8
{[%clk 0:01:09.7]} 21. Bxd4 {[%clk 0:01:29.4]} 21... exd4 {[%clk 0:01:09.8]} 22.
Na2 {[%clk 0:01:28.2]} 22... e5 {[%clk 0:01:08.2]} 23. Rd3 {[%clk 0:01:22.9]}
23... c5 {[%clk 0:01:05.6]} 24. Rg3 {[%clk 0:01:16.8]} 24... Ne8 {[%clk
0:01:01.5]} 25. Rd1 {[%clk 0:01:09.6]} 25... Bh6 {[%clk 0:01:01.3]} 26. Qc4
{[%clk 0:01:03.7]} 26... Bf4 {[%clk 0:00:59.8]} 27. Rb3 {[%clk 0:01:00.3]} 27...
Qc6 {[%clk 0:00:58.4]} 28. g3 {[%clk 0:00:53.6]} 28... Bg5 {[%clk 0:00:53.5]}
29. f3 {[%clk 0:00:50.9]} 29... h4 {[%clk 0:00:49.2]} 30. gxh4 {[%clk
0:00:49.6]} 30... Bxh4 {[%clk 0:00:49.3]} 31. Rg1 {[%clk 0:00:47.4]} 31... g5
{[%clk 0:00:48.5]} 32. Rb5 {[%clk 0:00:37.1]} 32... b6 {[%clk 0:00:45.8]} 33.
Nb4 {[%clk 0:00:34.9]} 33... Qd7 {[%clk 0:00:30.6]} 34. Na6 {[%clk 0:00:26.9]}
34... Nd6 {[%clk 0:00:27.8]} 35. Qxc5+ {[%clk 0:00:26.2]} 35... Kb7 {[%clk
0:00:23.7]} 36. Qd5+ {[%clk 0:00:25.1]} 36... Kxa6 {[%clk 0:00:20.5]} 37. Rb4
{[%clk 0:00:23.6]} 37... Nf7 {[%clk 0:00:15.2]} 38. Qb3 {[%clk 0:00:19.1]} 38...
Kb7 {[%clk 0:00:14.6]} 39. a4 {[%clk 0:00:19.2]} 39... Rc8 {[%clk 0:00:10.5]}
40. a5 {[%clk 0:00:19.2]} 40... Rc6 {[%clk 0:00:11.2]} 41. axb6 {[%clk
0:00:18.4]} 41... Rxb6 {[%clk 0:00:10.4]} 42. Rxb6+ {[%clk 0:00:18.2]} 42...
axb6 {[%clk 0:00:11.3]} 43. Rd1 {[%clk 0:00:18]} 43... Nd6 {[%clk 0:00:09.9]}
44. Qd5+ {[%clk 0:00:17.7]} 44... Qc6 {[%clk 0:00:09.5]} 45. Qxe5 {[%clk
0:00:16.5]} 45... Nb5 {[%clk 0:00:10.3]} 46. Qe7+ {[%clk 0:00:16.4]} 46... Ka6
{[%clk 0:00:10]} 47. Qa3+ {[%clk 0:00:16]} 47... Nxa3+ {[%clk 0:00:09.8]} 48.
bxa3 {[%clk 0:00:16]} 48... Bf2 {[%clk 0:00:10.7]} 49. Rd3 {[%clk 0:00:16]}
49... Be3 {[%clk 0:00:11.1]} 50. Rb3 {[%clk 0:00:16.2]} 50... Qc4 {[%clk
0:00:11]} 51. a4 {[%clk 0:00:16.4]} 51... Qxa4 {[%clk 0:00:09.9]} 52. Kb2 {[%clk
0:00:16.6]} 52... Qc4 {[%clk 0:00:09.9]} 53. Ra3+ {[%clk 0:00:16.3]} 53... Kb7
{[%clk 0:00:10.4]} 54. Rb3 {[%clk 0:00:17.2]} 54... Qe2 {[%clk 0:00:09.9]} 55.
e5 {[%clk 0:00:18.1]} 55... Qxf3 {[%clk 0:00:09.6]} 56. Rd3 {[%clk 0:00:18.2]}
56... Qe4 {[%clk 0:00:09.8]} 57. e6 {[%clk 0:00:19.1]} 57... Qxe6 {[%clk
0:00:10.1]} 58. h4 {[%clk 0:00:18.7]} 58... gxh4 {[%clk 0:00:09.8]} 59. c4
{[%clk 0:00:18.3]} 59... dxc3+ {[%clk 0:00:10]} 60. Rxc3 {[%clk 0:00:18.4]}
60... Bc5 {[%clk 0:00:10.9]} 61. Rb3 {[%clk 0:00:16.9]} 61... Qe2+ {[%clk
0:00:09.4]} 62. Kb1 {[%clk 0:00:15.9]} 62... Qd1+ {[%clk 0:00:09.4]} 63. Ka2
{[%clk 0:00:15.9]} 63... Qxb3+ {[%clk 0:00:09.8]} 64. Kxb3 {[%clk 0:00:15.8]}
64... h3 {[%clk 0:00:10.7]} 65. Ka4 {[%clk 0:00:16.3]} 65... h2 {[%clk
0:00:11.6]} 66. Kb3 {[%clk 0:00:17]} 66... h1=Q {[%clk 0:00:11.4]} 67. Kc4
{[%clk 0:00:17.9]} 67... Qc6 {[%clk 0:00:11.3]} 68. Kb3 {[%clk 0:00:18.8]} 68...
Ka6 {[%clk 0:00:11.6]} 69. Kc4 {[%clk 0:00:18.3]} 69... Qe4+ {[%clk 0:00:12.3]}
70. Kb3 {[%clk 0:00:18.4]} 70... Kb5 {[%clk 0:00:12.8]} 71. Ka2 {[%clk
0:00:19.3]} 71... Qc2+ {[%clk 0:00:12.4]} 72. Ka1 {[%clk 0:00:18.9]} 72... Bd4#
{[%clk 0:00:12.9]} 0-1